fUSD/lending_fUSD_20251019
["ID","MTS","AMOUNT","RATE_DAILY","PERIOD"]
[391833913,1760897444060,-505.00597386,0.00034203,8]
[391833914,1760897444070,-500.0,0.00034203,8]
[391833915,1760897444079,-505.02807116,0.00034203,8]
[391833916,1760897444089,-500.0,0.00034203,8]
[391833917,1760897444098,-500.0,0.00034203,8]
[391833918,1760897444108,-500.0,0.00034203,8]
[391833919,1760897444118,-429.11382872,0.00034203,8]
[391833920,1760897444127,-505.32115162,0.00034203,8]
[391833921,1760897444137,-500.0,0.00034203,8]
[391833922,1760897444146,-500.0,0.00034203,8]
[391833923,1760897444156,-500.0,0.00034203,8]
[391833924,1760897444166,-500.0,0.00034203,8]
[391833925,1760897444176,-500.0,0.00034203,8]
[391833926,1760897444185,-500.0,0.00034203,8]
[391833927,1760897444195,-500.0,0.00034203,8]
[391833928,1760897444205,-500.0,0.00034203,8]
[391833929,1760897444215,-500.0,0.00034203,8]
[391833930,1760897444225,-500.0,0.00034203,8]
[391833931,1760897444235,-500.0,0.00034203,8]
[391833932,1760897444245,-500.0,0.00034203,8]
[391833933,1760897444255,-500.0,0.00034203,8]
[391833934,1760897444265,-500.0,0.00034203,8]
[391833935,1760897444275,-500.0,0.00034203,8]
[391833936,1760897444284,-500.0,0.00034203,8]
[391833937,1760897444293,-500.0,0.00034203,8]
[391833938,1760897444303,-504.24349549,0.00034203,8]
[391833939,1760897444313,-500.0,0.00034203,8]
[391833940,1760897444322,-504.54854003,0.00034203,8]
[391833941,1760897444331,-500.0,0.00034203,8]
[391833942,1760897444341,-503.10535442,0.00034203,8]
[391833943,1760897444351,-500.0,0.00034203,8]
[391833944,1760897444360,-500.0,0.00034203,8]
[391833945,1760897444369,-500.0,0.00034203,8]
[391833946,1760897444379,-529.96653217,0.00034203,8]
[391833947,1760897444388,-500.0,0.00034203,8]
[391833948,1760897444397,-500.0,0.00034203,8]
[391833949,1760897444407,-500.0,0.00034203,8]
[391833950,1760897444416,-500.0,0.00034203,8]
[391833951,1760897444426,-500.0,0.00034203,8]
[391833952,1760897444435,-500.0,0.00034203,8]
[391833953,1760897444445,-500.0,0.00034203,8]
[391833954,1760897444454,-503.73601214,0.00034203,8]
[391833955,1760897444464,-500.0,0.00034203,8]
[391833956,1760897444474,-500.0,0.00034203,8]
[391833957,1760897444483,-500.0,0.00034203,8]
[391833958,1760897444493,-500.0,0.00034203,8]
[391833959,1760897444502,-500.0,0.00034203,8]
[391833960,1760897444512,-500.0,0.00034203,8]
[391833961,1760897444522,-500.0,0.00034203,8]
[391833962,1760897444531,-500.0,0.00034203,8]
[391833963,1760897444541,-500.0,0.00034203,8]
[391833964,1760897444550,-500.0,0.00034203,8]
[391833965,1760897444565,-500.0,0.00034203,8]
[391833966,1760897444574,-500.0,0.00034203,8]
[391833967,1760897444584,-500.0,0.00034203,8]
[391833968,1760897444593,-500.0,0.00034203,8]
[391833969,1760897444602,-500.0,0.00034203,8]
[391833970,1760897444612,-500.0,0.00034203,8]
[391833971,1760897444622,-500.0,0.00034203,8]
[391833972,1760897444631,-500.0,0.00034203,8]
[391833973,1760897444640,-500.0,0.00034203,8]
[391833974,1760897444649,-500.0,0.00034203,8]
[391833975,1760897444658,-504.36011624,0.00034203,8]
[391833976,1760897444668,-500.0,0.00034203,8]
[391833977,1760897444677,-500.0,0.00034203,8]
[391833978,1760897444687,-500.0,0.00034203,8]
[391833979,1760897444696,-500.0,0.00034203,8]
[391833980,1760897444705,-500.0,0.00034203,8]
[391833981,1760897444714,-502.11429615,0.00034203,8]
[391833982,1760897444724,-500.0,0.00034203,8]
[391833983,1760897444733,-570.66979367,0.00034203,8]
[391833984,1760897444743,-500.0,0.00034203,8]
[391833985,1760897444752,-500.0,0.00034203,8]
[391833986,1760897444761,-500.0,0.00034203,8]
[391833987,1760897444771,-500.0,0.00034203,8]
[391833988,1760897444780,-500.0,0.00034203,8]
[391833989,1760897444790,-424.45,0.00034203,7]
[391833990,1760897444799,-500.0,0.00034203,8]
[391833991,1760897444810,-500.0,0.00034203,8]
[391833992,1760897444819,-500.0,0.00034203,8]
[391833993,1760897444829,-503.13786967,0.00034203,8]
[391833994,1760897444839,-500.0,0.00034203,8]
[391833995,1760897444848,-500.0,0.00034203,8]
[391833996,1760897444857,-564.58241277,0.00034203,8]
[391833997,1760897444866,-308.83345396,0.00034203,8]
[391833998,1760897444875,-502.31946755,0.00034203,5]
[391833999,1760897444885,-1000.0,0.00034203,8]
[391834000,1760897444894,-969.86,0.00034203,8]
[391834001,1760897444903,-500.0,0.00034203,8]
[391834002,1760897444913,-500.0,0.00034203,8]
[391834003,1760897444923,-1122.61,0.00034203,2]
[391834004,1760897444932,-500.0,0.00034203,8]
[391834005,1760897444941,-500.0,0.00034203,8]
[391834006,1760897444951,-503.00252659,0.00034203,8]
[391834007,1760897444960,-1246.89,0.00034203,8]
[391834008,1760897444971,-647.48,0.00034203,2]
[391834009,1760897444980,-500.0,0.00034203,8]
[391834010,1760897444990,-500.0,0.00034203,8]
[391834011,1760897444999,-500.0,0.00034203,8]
[391834012,1760897445009,-503.23186723,0.00034203,8]
[391834013,1760897445018,-500.0,0.00034203,8]
[391834014,1760897445028,-500.0,0.00034203,8]
[391834015,1760897445038,-507.24699481,0.00034203,8]
[391834016,1760897445047,-500.0,0.00034203,8]
[391834017,1760897445057,-500.0,0.00034203,8]
[391834018,1760897445066,-500.0,0.00034204,8]
[391834019,1760897445075,-500.0,0.00034204,8]
[391834020,1760897445084,-500.0,0.00034204,8]
[391834021,1760897445095,-500.0,0.00034204,8]
[391834022,1760897445104,-502.77972126,0.00034204,8]
[391834023,1760897445114,-300.0,0.00034204,2]
[391834024,1760897445124,-500.0,0.00034204,8]
[391834025,1760897445134,-500.0,0.00034204,8]
[391834026,1760897445144,-500.0,0.00034204,8]
[391834027,1760897445154,-381.98896016,0.00034204,8]
[391834028,1760897445164,-500.0,0.00034204,8]
[391834029,1760897445174,-500.0,0.00034204,8]
[391834030,1760897445184,-500.0,0.00034204,8]
[391834031,1760897445193,-500.0,0.00034204,8]
[391834032,1760897445203,-503.12026869,0.00034204,8]
[391834033,1760897445211,-503.02967333,0.00034204,8]
[391834034,1760897445221,-500.0,0.00034204,8]
[391834035,1760897445230,-502.24877824,0.00034204,8]
[391834036,1760897445239,-500.0,0.00034204,8]
[391834037,1760897445250,-500.0,0.00034204,8]
[391834038,1760897445259,-500.0,0.00034204,8]
[391834039,1760897445268,-542.03949552,0.00034204,8]
[391834040,1760897445277,-500.0,0.00034204,8]
[391834041,1760897445286,-534.1203534,0.00034204,8]
[391834042,1760897445295,-500.0,0.00034204,8]
[391834043,1760897445304,-500.0,0.00034204,8]
[391834044,1760897445314,-503.07612717,0.00034204,8]
[391834045,1760897445323,-500.0,0.00034204,8]
[391834046,1760897445332,-500.0,0.00034204,8]
[391834047,1760897445341,-500.0,0.00034204,8]
[391834048,1760897445350,-500.0,0.00034204,8]
[391834049,1760897445360,-442.99163425,0.00034204,8]
[391834050,1760897445370,-218.22990417,0.00034204,8]
[391834051,1760897445379,-500.0,0.00034204,8]
[391834052,1760897445388,-500.0,0.00034204,8]
[391834053,1760897445398,-206.23825979,0.00034204,8]
[391834054,1760897445407,-500.0,0.00034204,8]
[391834055,1760897445417,-500.0,0.00034204,8]
[391834056,1760897445426,-500.0,0.00034204,8]
[391834057,1760897445435,-537.10553263,0.00034204,8]
[391834058,1760897445445,-882.4,0.00034204,8]
[391834059,1760897445454,-500.0,0.00034204,7]
[391834060,1760897445463,-500.0,0.00034204,8]
[391834061,1760897445473,-500.0,0.00034204,8]
[391834062,1760897445482,-500.0,0.00034204,8]
[391834063,1760897445492,-500.0,0.00034204,8]
[391834064,1760897445501,-502.73914943,0.00034204,8]
[391834065,1760897445510,-500.85363206,0.00034204,8]
[391834066,1760897445519,-529.86041948,0.00034204,8]
[391834067,1760897445528,-168.5396622,0.00034204,8]
[391834068,1760897445537,-791.48,0.00034204,8]
[391834069,1760897445547,-500.0,0.00034204,8]
[391834070,1760897445562,-501.42489514,0.00034204,8]
[391834071,1760897445571,-502.91118095,0.00034204,8]
[391834072,1760897445581,-500.0,0.00034204,8]
[391834073,1760897445591,-500.0,0.00034204,2]
[391834074,1760897445602,-575.46658301,0.00034204,8]
[391834075,1760897445611,-500.0,0.00034204,8]
[391834076,1760897445620,-500.0,0.00034204,8]
[391834077,1760897445630,-500.0,0.00034204,8]
[391834078,1760897445640,-504.31300974,0.00034204,8]
[391834079,1760897445650,-508.34876595,0.00034204,8]
[391834080,1760897445659,-500.0,0.00034204,8]
[391834081,1760897445668,-500.0,0.00034204,8]
[391834082,1760897445678,-501.69317511,0.00034204,8]
[391834083,1760897445687,-504.46776771,0.00034204,8]
[391834084,1760897445697,-646.7648589,0.00034204,8]
[391834085,1760897445706,-504.08229459,0.00034204,8]
[391834086,1760897445715,-501.83486882,0.00034204,8]
[391834087,1760897445725,-500.0,0.00034204,8]
[391834088,1760897445734,-502.59109233,0.00034204,8]
[391834089,1760897445744,-500.0,0.00034204,8]
[391834090,1760897445754,-504.59845748,0.00034204,8]
[391834091,1760897445763,-304.14054969,0.00034204,2]
[391834092,1760897445773,-501.6501117,0.00034204,8]
[391834093,1760897445782,-509.29795331,0.00034204,8]
[391834094,1760897445793,-608.36605392,0.00034204,8]
[391834095,1760897445804,-505.05679139,0.00034204,8]
[391834096,1760897445813,-500.0,0.00034204,8]
[391834097,1760897445822,-502.46098267,0.00034204,8]
[391834098,1760897445832,-500.0,0.00034204,8]
[391834099,1760897445841,-500.0,0.00034204,8]
[391834100,1760897445851,-500.0,0.00034204,8]
[391834101,1760897445860,-320.89872776,0.00034204,8]
[391834102,1760897445870,-500.0,0.00034204,8]
[391834103,1760897445879,-500.0,0.00034204,8]
[391834104,1760897445889,-503.12941394,0.00034204,8]
[391834105,1760897445898,-501.72125214,0.00034204,8]
[391834106,1760897445909,-500.0,0.00034204,8]
[391834107,1760897445919,-500.58636899,0.00034204,8]
[391834108,1760897445928,-502.10245294,0.00034204,8]
[391834109,1760897445938,-500.0,0.00034204,8]
[391834110,1760897445947,-501.00052412,0.00034204,8]
[391834111,1760897445957,-300.0,0.00034204,2]
[391834112,1760897445966,-612.53999294,0.00034204,8]
[391834113,1760897445975,-500.0,0.00034204,8]
[391834114,1760897445984,-502.75736185,0.00034204,8]
[391834115,1760897445994,-500.0,0.00034204,8]
[391834116,1760897446003,-500.0,0.00034204,8]
[391834117,1760897446013,-323.38507253,0.00034204,8]
[391834118,1760897446022,-500.0,0.00034204,5]
[391834119,1760897446032,-307.72155717,0.00034204,8]
[391834120,1760897446042,-500.0,0.00034204,2]
[391834121,1760897446051,-500.0,0.00034204,3]
[391834122,1760897446060,-500.0,0.00034204,8]
[391834123,1760897446070,-459.46634128,0.00034204,8]
[391834124,1760897446079,-501.25383626,0.00034204,8]
[391834125,1760897446088,-500.0,0.00034204,8]
[391834126,1760897446097,-501.75943924,0.00034204,8]
[391834127,1760897446107,-500.0,0.00034204,8]
[391834128,1760897446116,-255.46259619,0.00034204,8]
[391834129,1760897446126,-500.0,0.00034204,8]
[391834130,1760897446135,-500.0,0.00034204,8]
[391834131,1760897446145,-500.0,0.00034204,8]
[391834134,1760897446155,-500.0,0.00034204,8]
[391834135,1760897446164,-500.0,0.00034204,8]
[391834136,1760897446174,-500.0,0.00034204,8]
[391834137,1760897446183,-527.33464699,0.00034204,8]
[391834138,1760897446192,-500.0,0.00034204,8]
[391834139,1760897446201,-501.49136182,0.00034204,8]
[391834140,1760897446211,-500.0,0.00034204,8]
[391834141,1760897446220,-500.0,0.00034204,8]
[391834142,1760897446229,-506.57488661,0.00034204,8]
[391834143,1760897446238,-505.36563542,0.00034204,8]
[391834144,1760897446248,-503.32393607,0.00034204,8]
[391834145,1760897446257,-150.0,0.00034204,8]
[391834146,1760897446266,-504.34733736,0.00034204,8]
[391834147,1760897446276,-150.0,0.00034205,2]
[391834148,1760897446286,-155.0,0.00034205,2]
[391834149,1760897446295,-508.50226444,0.00034205,8]
[391834150,1760897446304,-500.0,0.00034205,8]
[391834151,1760897446313,-500.0,0.00034205,8]
[391834152,1760897446323,-500.0,0.00034205,8]
[391834153,1760897446332,-500.0,0.00034205,8]
[391834154,1760897446341,-1072.9,0.00034205,8]
[391834155,1760897446350,-11923.14662418,0.00034206,34]
[391834156,1760897446360,-666.0,0.00034206,10]
[391834157,1760897446369,-200.0,0.00034206,2]
[391834158,1760897446379,-212.59973743,0.00034206,8]
[391834159,1760897446388,-601.50610832,0.00034206,8]
[391834160,1760897446397,-500.0,0.00034206,7]
[391834161,1760897446406,-500.0,0.00034206,7]
[391834162,1760897446415,-500.0,0.00034206,7]
[391834163,1760897446425,-500.0,0.00034206,7]
[391834164,1760897446434,-500.0,0.00034206,7]
[391834165,1760897446445,-500.0,0.00034206,7]
[391834166,1760897446456,-500.0,0.00034206,7]
[391834167,1760897446465,-500.0,0.00034206,7]
[391834168,1760897446475,-500.0,0.00034206,7]
[391834169,1760897446484,-500.0,0.00034206,8]
[391834170,1760897446493,-500.0,0.00034206,8]
[391834171,1760897446503,-500.0,0.00034206,8]
[391834172,1760897446513,-500.0,0.00034206,8]
[391834173,1760897446522,-500.0,0.00034206,8]
[391834174,1760897446531,-500.0,0.00034206,8]
[391834175,1760897446540,-500.0,0.00034206,8]
[391834176,1760897446550,-500.0,0.00034206,8]
[391834177,1760897446562,-500.0,0.00034206,8]
[391834178,1760897446572,-271.35106557,0.00034206,8]
[391834179,1760897446582,-500.0,0.00034206,8]
[391834180,1760897446591,-354.5594112,0.00034206,8]
[391834181,1760897446601,-150.0,0.00034206,20]
[391834182,1760897446610,-362.18183946,0.00034206,8]
[391834183,1760897446619,-214.097541,0.00034206,30]
[391834184,1760897446629,-214.097541,0.00034206,30]
[391834185,1760897446639,-214.097541,0.00034206,30]
[391834186,1760897446648,-214.097541,0.00034206,30]
[391834187,1760897446657,-1072.9,0.00034206,8]
[391834188,1760897446667,-1072.9,0.00034206,8]
[391834189,1760897446676,-1072.9,0.00034206,8]
[391834190,1760897446686,-1072.9,0.00034206,8]
[391834191,1760897446696,-1072.9,0.00034206,8]
[391834192,1760897446705,-1072.9,0.00034206,8]
[391834193,1760897446715,-1072.9,0.00034206,8]
[391834194,1760897446724,-1072.9,0.00034206,8]
[391834195,1760897446734,-1072.9,0.00034206,8]
[391834196,1760897446743,-6316.84118913,0.00034206,17]
[391834197,1760897446753,-50000.0,0.00034206,18]
[391834198,1760897446763,-50000.0,0.00034206,19]
[391834199,1760897446772,-50000.0,0.00034206,20]
[391834200,1760897446781,-500.0,0.00034206,15]
[391834201,1760897446790,-410.0,0.00034207,5]
[391834202,1760897446800,-327.420067,0.00034207,30]
[391834203,1760897446810,-327.420067,0.00034207,30]
[391834204,1760897446819,-327.420067,0.00034207,30]
[391834205,1760897446829,-327.420067,0.00034207,30]
[391834206,1760897446839,-151.0,0.00034207,30]
[391834207,1760897446848,-151.0,0.00034207,30]
[391834208,1760897446858,-151.0,0.00034207,30]
[391834209,1760897446867,-151.0,0.00034207,30]
[391834210,1760897446877,-151.0,0.00034207,30]
[391834211,1760897446886,-151.0,0.00034207,30]
[391834212,1760897446895,-151.0,0.00034207,30]
[391834213,1760897446904,-151.0,0.00034207,30]
[391834214,1760897446914,-151.0,0.00034207,30]
[391834215,1760897446923,-151.0,0.00034207,30]
[391834216,1760897446932,-151.0,0.00034207,30]
[391834217,1760897446942,-151.0,0.00034207,30]
[391834218,1760897446952,-151.0,0.00034207,30]
[391834219,1760897446961,-151.0,0.00034207,30]
[391834220,1760897446971,-151.0,0.00034207,30]
[391834221,1760897446981,-151.0,0.00034207,30]
[391834222,1760897446990,-151.0,0.00034207,30]
[391834223,1760897447000,-151.0,0.00034207,30]
[391834224,1760897447011,-151.0,0.00034207,30]
[391834225,1760897447021,-151.0,0.00034207,30]
[391834226,1760897447031,-151.0,0.00034207,30]
[391834227,1760897447042,-151.0,0.00034207,30]
[391834228,1760897447051,-151.0,0.00034207,30]
[391834229,1760897447061,-151.0,0.00034207,30]
[391834230,1760897447072,-151.0,0.00034207,30]
[391834231,1760897447083,-294.11496,0.00034207,30]
[391834232,1760897447092,-151.0,0.00034207,30]
[391834233,1760897447103,-151.0,0.00034207,30]
[391834234,1760897447113,-151.0,0.00034207,30]
[391834235,1760897447123,-212.539348,0.00034207,30]
[391834236,1760897447134,-151.0,0.00034207,30]
[391834237,1760897447144,-151.0,0.00034207,30]
[391834238,1760897447154,-151.0,0.00034207,30]
[391834239,1760897447163,-151.0,0.00034207,30]
[391834240,1760897447173,-151.0,0.00034207,30]
[391834241,1760897447183,-151.0,0.00034207,30]
[391834242,1760897447193,-156.177948,0.00034207,30]
[391834243,1760897447203,-300.0,0.00034207,5]
[391834244,1760897447213,-300.0,0.00034207,5]
[391834245,1760897447222,-300.0,0.00034207,5]
[391834246,1760897447232,-317.335403,0.00034207,5]
[391834247,1760897447241,-214.097541,0.00034207,30]
[391834248,1760897447251,-214.097541,0.00034207,30]
[391834249,1760897447261,-214.097541,0.00034207,30]
[391834250,1760897447271,-214.097541,0.00034207,30]
[391834251,1760897447280,-214.097541,0.00034207,30]
[391834252,1760897447291,-214.097541,0.00034207,30]
[391834253,1760897447300,-214.097541,0.00034207,30]
[391834254,1760897447310,-214.097541,0.00034207,30]
[391834255,1760897447319,-214.097541,0.00034207,30]
[391834256,1760897447329,-214.097541,0.00034207,30]
[391834257,1760897447338,-214.097541,0.00034207,30]
[391834258,1760897447349,-214.097541,0.00034207,30]
[391834259,1760897447358,-214.097541,0.00034207,30]
[391834260,1760897447369,-214.097541,0.00034207,30]
[391834261,1760897447378,-214.097541,0.00034207,30]
[391834262,1760897447387,-214.097548,0.00034207,30]
[391834263,1760897447397,-1735.06866635,0.00034207,120]
[391834264,1760897447406,-201.0,0.00034207,2]
[391834265,1760897447415,-104227.76930826,0.00034207,2]
[391834266,1760897447717,-639.22380711,0.00034207,2]
[391834267,1760897447729,-2420.24426785,0.00034207,2]
[391834268,1760897447740,-2283.36,0.00034207,2]
[391834269,1760897447751,-2002.35000001,0.00034207,2]
[391834270,1760897447763,-2187.2,0.00034207,2]
[391834271,1760897460061,200.0,0.00034207,120]
[391834276,1760897762177,200.0,0.00034207,120]
[391834282,1760898060531,200.0,0.0003421,120]
[391834288,1760898303263,199.03,0.00013699,2]
[391834290,1760898307777,4800.97,0.00015,2]
[391834291,1760898307801,5000.0,0.00015,2]
[391834292,1760898307833,5000.0,0.00015,2]
[391834293,1760898322819,-152.75873485,0.00015,2]
[391834295,1760898362246,200.0,0.00034215,120]
[391834297,1760898471220,421.0,0.00013,15]
[391834298,1760898471418,-334.32789586,0.00014999,2]
[391834299,1760898471450,-500.0,0.00014999,2]
[391834300,1760898471478,-500.0,0.00014999,2]
[391834301,1760898471507,-404.37300833,0.00014999,2]
[391834302,1760898471532,-150.0,0.00014999,2]
[391834303,1760898471642,-86869.40981278,0.00015,2]
[391834322,1760898522561,5000.0,0.0001,2]
[391834323,1760898522592,8402.72109376,0.0001,2]
[391834331,1760898584257,-20000.0,0.00015,2]
[391834341,1760898603130,151.0,0.00034215,30]
[391834342,1760898603192,151.0,0.00034215,120]
[391834346,1760898608445,2165.00415131,0.00034215,120]
[391834358,1760898631551,-1200.0,0.00014999,2]
[391834361,1760898631561,-150.0,0.00014999,2]
[391834362,1760898631571,-500.0,0.00014999,2]
[391834364,1760898631581,-8845.0,0.00015,2]
[391834365,1760898631592,-4024.933071,0.00015,2]
[391834366,1760898631607,-32997.45686333,0.00015,2]
[391834367,1760898631619,-59026.64397165,0.00015,2]
[391834368,1760898631667,-614.37390575,0.00015,2]
[391834369,1760898631679,-1614.55356905,0.00015,2]
[391834370,1760898631690,-4930.84367137,0.00015,2]
[391834371,1760898631702,-926.7019046,0.00015,2]
[391834372,1760898631714,-24108.71870133,0.00015,2]
[391834373,1760898631725,-9055.568093,0.00015,2]
[391834374,1760898631783,-495.52614819,0.00015,2]
[391834396,1760898637510,-3206.39999943,0.00015,2]
[391834397,1760898637522,-16065.4587627,0.00015,2]
[391834398,1760898637534,-981.36511929,0.00015,2]
[391834399,1760898637545,-817.02608,0.00015,2]
[391834400,1760898637622,-1240.66059968,0.00015,2]
[391834401,1760898637679,-79090.15207522,0.00015,2]
[391834402,1760898637688,-63098.45534905,0.00015,2]
[391834403,1760898637711,-8574.25457125,0.00015,2]
[391834587,1760898639526,-868.14495538,0.00015,2]
[391834589,1760898639539,-2201.03919672,0.00015,2]
[391834600,1760898639634,-3555.28235025,0.00015,2]
[391834602,1760898639647,-10618.34590143,0.00015,2]
[391834613,1760898639744,-547.3440381,0.00015,2]
[391834615,1760898639755,-1184.7,0.00015,2]
[391834618,1760898639766,-1965.4006804,0.00015,2]
[391834627,1760898639852,-2504.96034756,0.00015,2]
[391834630,1760898639862,-180.20035149,0.00015924,2]
[391834632,1760898639871,-3302.98868888,0.00016024,2]
[391834634,1760898639880,-255.0,0.00016124,2]
[391834635,1760898639889,-195.0,0.000165,2]
[391834636,1760898639899,-250.0,0.000165,2]
[391834637,1760898639909,-433.0,0.00017339,2]
[391834638,1760898639918,-300.0,0.00018629,2]
[391834639,1760898639927,-3302.98868886,0.00019232,2]
[391834640,1760898639936,-8099.26527762,0.0001991,2]
[391834641,1760898639946,-2744.37084668,0.0002,2]
[391834642,1760898639955,-8983.45913994,0.0002001,2]
[391834643,1760898639965,-180.20035145,0.00020068,2]
[391834645,1760898639974,-199.03,0.00020187,2]
[391834647,1760898639983,-3302.98868886,0.00022441,2]
[391834649,1760898639993,-8099.26527755,0.00022687,2]
[391834651,1760898640003,-161.0482372,0.00023058,2]
[391834653,1760898640013,-475.82771539,0.00023158,2]
[391834655,1760898640023,-685.16865368,0.000241,2]
[391834657,1760898640033,-180.20035145,0.00024211,2]
[391834659,1760898640042,-38356.5646471,0.000248,2]
[391834661,1760898640052,-500.0,0.000248,2]
[391834663,1760898640062,-502.20874764,0.000248,2]
[391834665,1760898640072,-479.26697898,0.000248,2]
[391834667,1760898640082,-6392.76077452,0.00025453,2]
[391834669,1760898640092,-8099.26527755,0.00025463,2]
[391834671,1760898640101,-3302.98868886,0.00025649,2]
[391834673,1760898640111,-161.0482372,0.00026187,2]
[391834676,1760898640126,-199.03,0.00026676,2]
[391834678,1760898640136,-8099.26527755,0.0002824,2]
[391834680,1760898640150,-180.20035145,0.00028355,2]
[391834681,1760898640159,-3302.98868886,0.00028858,2]
[391834684,1760898640169,-161.0482372,0.00029316,15]
[391834685,1760898640178,-6392.76077452,0.00031007,2]
[391834688,1760898640188,-500.0,0.00031016,8]
[391834690,1760898640197,-6549.48956023,0.00031017,2]
[391834692,1760898640209,-687.00000082,0.00031017,2]
[391834694,1760898640221,-862.7757165,0.00031017,2]
[391834696,1760898640231,-1377.77860422,0.00032066,2]
[391834698,1760898640242,-1925.21008464,0.00032066,2]
[391834700,1760898640253,-161.0482372,0.00032445,15]
[391834702,1760898640262,-1911.19034138,0.00032743,2]
[391834705,1760898640273,-1719.3985112,0.00032743,2]
[391834707,1760898640283,-1369.41114742,0.00032743,2]
[391834709,1760898640293,-794.1,0.00032743,2]
[391834711,1760898640303,-194.39519628,0.00032866,2]
[391834713,1760898640314,-1740.96532125,0.00032866,2]
[391834821,1760898642622,-176.56779663,0.00032866,2]
[391834823,1760898642665,-1758.01004104,0.00032866,2]
[391834824,1760898642721,-270.582,0.00032866,2]
[391834825,1760898642778,-2252.24041932,0.00032866,2]
[391834826,1760898642787,-689.47,0.00032876,8]
[391834827,1760898642797,-500.0,0.00032876,8]
[391834828,1760898642806,-500.0,0.00032876,8]
[391834829,1760898642815,-500.0,0.00032876,8]
[391834830,1760898642825,-500.0,0.00032876,8]
[391834831,1760898642835,-500.0,0.00032876,8]
[391834832,1760898642847,-501.3564325,0.00032876,8]
[391834833,1760898642856,-500.0,0.00032876,8]
[391834834,1760898642865,-500.0,0.00032876,8]
[391834835,1760898642875,-500.0,0.00032876,8]
[391834836,1760898642884,-500.0,0.00032876,8]
[391834837,1760898642895,-500.0,0.00032876,8]
[391834838,1760898642905,-500.0,0.00032876,2]
[391834839,1760898642916,-500.0,0.00032876,8]
[391834840,1760898642926,-500.0,0.00032876,7]
[391834841,1760898642936,-500.0,0.00032876,8]
[391834842,1760898642945,-500.0,0.00032876,8]
[391834843,1760898642955,-505.32151968,0.00032876,8]
[391834844,1760898642964,-500.0,0.00032876,8]
[391834845,1760898642973,-500.0,0.00032876,8]
[391834846,1760898642983,-500.0,0.00032876,8]
[391834847,1760898642993,-900.0,0.00033047,7]
[391834849,1760898643002,-900.0,0.00033065,2]
[391834851,1760898643011,-900.0,0.00033069,2]
[391834853,1760898643020,-900.0,0.0003307,7]
[391834855,1760898643030,-689.47,0.0003315,8]
[391834857,1760898643039,-500.0,0.0003315,8]
[391834859,1760898643050,-559.91578547,0.0003315,8]
[391834861,1760898643060,-500.0,0.0003315,8]
[391834863,1760898643069,-500.0,0.0003315,8]
[391834865,1760898643078,-500.0,0.0003315,8]
[391834867,1760898643088,-500.0,0.0003315,8]
[391834869,1760898643097,-500.0,0.0003315,8]
[391834872,1760898643108,-500.0,0.0003315,8]
[391834873,1760898643117,-500.0,0.0003315,2]
[391834875,1760898643127,-500.0,0.0003315,8]
[391834877,1760898643136,-500.0,0.0003315,7]
[391834879,1760898643145,-500.0,0.0003315,8]
[391834881,1760898643154,-500.0,0.0003315,8]
[391834883,1760898643164,-500.0,0.0003315,8]
[391834886,1760898643174,-639.64898466,0.0003315,8]
[391834887,1760898643183,-199.03,0.00033165,2]